bitfinex-derivatives/quotes_ETHF0:USTF0_20250421
["timestamp","ask_amount","ask_price","bid_price","bid_amount"]
[1745216997707,32.41171864,1651.7,1651.6,56.6848788]
[1745216997911,22.32070497,1651.7,1651.6,56.6848788]
[1745216998599,23.53167497,1651.7,1651.6,51.6848788]
[1745216999312,22.32070497,1651.7,1651.6,51.6848788]
[1745217000511,8.30421344,1651.7,1651.6,57.8959188]
[1745217000808,13.04340997,1652.0,1651.8,1.21082]
[1745217000809,11.83261997,1652.0,1651.8,1.21082]
[1745217001002,25.8491115,1652.0,1651.9,8.24802]
[1745217001704,11.83261997,1652.0,1651.9,13.24802]
[1745217002607,5.82433341,1652.0,1651.9,13.24802]
[1745217002804,12.15347678,1652.1,1652.0,1.21075]
[1745217003005,12.15347678,1652.1,1652.0,12.42305]
[1745217003209,12.15347678,1652.1,1652.0,17.42305]
[1745217003507,12.15347678,1652.1,1652.0,58.22305]
[1745217004102,12.15347678,1652.1,1652.0,48.68505]
[1745217004410,12.15347678,1652.1,1652.0,58.22205]
[1745217006112,12.15347678,1652.1,1652.0,58.81725]
[1745217007405,12.15347678,1652.1,1652.0,53.81725]
[1745217007714,4.0351709,1652.2,1652.1,1.21067]
[1745217008010,4.0351709,1652.2,1652.1,4.73447]
[1745217008613,4.0351709,1652.2,1652.1,45.53447]
[1745217009507,18.05166243,1652.2,1652.1,45.53447]
[1745217011714,14.01649153,1652.2,1652.1,45.53447]
[1745217015911,3.7384,1652.3,1652.2,1.2106]
[1745217016305,17.75489153,1652.3,1652.2,1.2106]
[1745217016516,17.75489153,1652.3,1652.2,42.0106]
[1745217022316,18.96542153,1652.3,1652.2,40.8]
[1745217022618,17.75489153,1652.3,1652.2,42.0106]
[1745217022925,1.21069,1652.1,1651.9,1.21079]
[1745217023126,4.67787,1652.0,1651.8,1.21088]
[1745217023317,24.56479153,1652.0,1651.9,1.21082]
[1745217023618,14.01649153,1651.9,1651.8,1.21084]
[1745217023815,14.01649153,1651.9,1651.8,42.01084]
[1745217026516,18.43511153,1651.9,1651.8,40.8]
[1745217026823,1.21097,1651.7,1651.6,0.0090788]
[1745217027018,4.41877,1651.7,1651.6,0.0090788]
[1745217027217,18.43526153,1651.7,1651.6,0.0090788]
[1745217027723,18.43526153,1651.7,1651.6,40.8090788]
[1745217030220,23.43526153,1651.7,1651.6,40.8090788]
[1745217030426,27.47043243,1651.7,1651.6,40.8090788]
[1745217031215,1.21141,1651.1,1651.0,3.2078]
[1745217031420,1.21148,1651.1,1650.8,1.21162]
[1745217031619,15.22797153,1651.1,1650.8,1.21162]
[1745217031823,15.22797153,1651.1,1650.8,4.74882]
[1745217032227,15.22797153,1651.1,1651.0,40.8]
[1745217032425,15.23705033,1651.1,1651.0,40.8]
[1745217034122,15.23705033,1651.1,1651.0,43.064]
[1745217034627,21.93385033,1651.1,1651.0,43.064]
[1745217035633,20.72237033,1651.1,1651.0,43.064]
[1745217035848,14.02557033,1651.1,1651.0,44.27548]
[1745217036027,4.0351709,1651.2,1651.1,1.21141]
[1745217036225,4.0351709,1651.2,1651.1,8.04401]
[1745217036427,4.0351709,1651.2,1651.1,12.57801]
[1745217036930,1.21141,1651.1,1651.0,43.064]
[1745217037133,15.22790153,1651.1,1651.0,40.8]
[1745217038331,15.22790153,1651.1,1651.0,43.064]
[1745217039334,15.22790153,1651.1,1651.0,46.6986]
[1745217040929,14.01649153,1651.1,1651.0,46.6986]
[1745217041535,17.59049153,1651.1,1651.0,46.6986]
[1745217041735,18.80190153,1651.1,1651.0,43.064]
[1745217042036,17.59049153,1651.1,1651.0,44.27548]
[1745217042237,17.59049153,1651.1,1651.0,47.88888]
[1745217042430,17.59049153,1651.1,1651.0,46.6774]
[1745217043138,17.59049153,1651.1,1651.0,47.88888]
[1745217043335,17.59049153,1651.1,1651.0,46.6774]
[1745217043831,14.01649153,1651.1,1651.0,47.88888]
[1745217044133,14.01649153,1651.1,1651.0,43.064]
[1745217044330,17.55539153,1651.1,1651.0,43.064]
[1745217044525,17.55539153,1651.1,1651.0,44.27548]
[1745217045032,18.76680153,1651.1,1651.0,43.064]
[1745217045229,22.43750153,1651.1,1651.0,43.064]
[1745217045738,21.22609153,1651.1,1651.0,43.064]
[1745217046042,22.43750153,1651.1,1651.0,43.064]
[1745217048142,22.43750153,1651.1,1651.0,40.8]
[1745217050040,1.21155,1650.9,1650.8,0.0090788]
[1745217050244,4.41935,1650.9,1650.8,0.0090788]
[1745217050437,18.43584153,1650.9,1650.8,0.0090788]
[1745217050637,21.77274153,1650.9,1650.8,0.0090788]
[1745217050937,21.77274153,1650.9,1650.8,40.8090788]
[1745217051138,26.77274153,1650.9,1650.8,43.0730788]
[1745217051543,21.77274153,1650.9,1650.8,43.0730788]
[1745217052236,21.77274153,1650.9,1650.8,40.8090788]
[1745217052943,20.56119153,1650.9,1650.8,40.8090788]
[1745217053146,17.35339153,1650.9,1650.8,47.7950088]
[1745217053445,15.22804153,1650.9,1650.8,46.5833788]
[1745217053747,18.43584153,1650.9,1650.8,46.5833788]
[1745217053948,18.43584153,1650.9,1650.8,50.1107788]
[1745217054245,17.22429153,1650.9,1650.8,50.1107788]
[1745217054444,15.22804153,1650.9,1650.8,50.1107788]
[1745217054647,18.82374153,1650.9,1650.8,50.1107788]
[1745217055145,17.61219153,1650.9,1650.8,50.1107788]
[1745217055649,18.82374153,1650.9,1650.8,50.1107788]
[1745217056243,14.01649153,1650.9,1650.8,50.1107788]
[1745217056949,15.22804153,1650.9,1650.8,50.1107788]
[1745217057544,14.01649153,1650.9,1650.8,50.1107788]
[1745217057751,15.22804153,1650.9,1650.8,50.1107788]
[1745217058549,14.01649153,1650.9,1650.8,51.3224088]
[1745217058753,3.2078,1651.1,1651.0,1.21148]
[1745217058954,4.0442497,1651.2,1651.1,1.21141]
[1745217059463,6.05275635,1651.3,1651.2,1.21133]
[1745217059755,6.05275635,1651.3,1651.2,53.56263]
[1745217059956,21.28050788,1651.3,1651.2,52.3513]
[1745217060156,21.28050788,1651.3,1651.2,54.6153]
[1745217060651,24.96430788,1651.3,1651.2,54.6153]
[1745217060851,24.96430788,1651.3,1651.2,50.0863]
[1745217061658,18.91155153,1651.3,1651.2,50.0863]
[1745217062559,18.91155153,1651.3,1651.2,46.6241]
[1745217063152,18.91155153,1651.3,1651.2,44.3601]
[1745217063560,18.91155153,1651.3,1651.2,40.8]
[1745217063859,17.70029153,1651.3,1651.2,40.8]
[1745217064760,18.91155153,1651.3,1651.2,40.8]
[1745217065463,17.70029153,1651.3,1651.2,40.8]
[1745217066251,17.70029153,1651.3,1651.2,42.01133]
[1745217069164,17.70029153,1651.3,1651.2,44.27533]
[1745217070164,17.70029153,1651.3,1651.2,42.01133]
[1745217071064,23.75304788,1651.3,1651.2,42.01133]
[1745217071455,23.75304788,1651.3,1651.2,40.8]
[1745217072761,6.05275635,1651.3,1651.2,42.01133]
[1745217073062,6.05275635,1651.3,1651.2,55.21133]
[1745217073258,6.05275635,1651.3,1651.2,57.47533]
[1745217074159,6.05275635,1651.3,1651.2,52.47533]
[1745217074364,8.07034181,1651.3,1651.2,46.742]
[1745217074666,8.07034181,1651.3,1651.2,52.47533]
[1745217074965,23.29809334,1651.3,1651.2,43.064]
[1745217075161,30.38769334,1651.3,1651.2,40.8]
[1745217077162,30.38769334,1651.3,1651.2,43.064]
[1745217078166,29.17643334,1651.3,1651.2,43.064]
[1745217078966,29.17643334,1651.3,1651.2,44.27533]
[1745217080172,29.17643334,1651.3,1651.2,42.01133]
[1745217082070,29.17643334,1651.3,1651.2,44.27533]
[1745217082772,25.64243334,1651.3,1651.2,44.27533]
[1745217083967,25.64243334,1651.3,1651.2,43.064]
[1745217084165,26.85369334,1651.3,1651.2,43.064]
[1745217085266,26.85369334,1651.3,1651.2,40.8]
[1745217085671,25.64243334,1651.3,1650.8,12.5604588]
[1745217085869,1.21144,1651.1,1650.8,12.5604588]
[1745217086069,4.56218,1651.0,1650.8,12.5604588]
[1745217086269,3.3507,1650.9,1650.8,8.0394588]
[1745217086467,3.3899,1651.2,1650.8,11.3488788]
[1745217086672,17.40639153,1651.2,1651.1,42.01141]
[1745217087571,17.40639153,1651.2,1651.1,49.32421]
[1745217088075,11.72284181,1651.3,1651.2,1.21133]
[1745217088377,8.07034181,1651.3,1651.2,4.85233]
[1745217089275,8.07034181,1651.3,1651.2,7.11633]
[1745217089575,10.08792726,1651.3,1651.2,7.11633]
[1745217091271,24.10441879,1651.3,1651.2,7.11633]
[1745217091481,27.50611879,1651.3,1651.2,7.11633]
[1745217091665,30.71391879,1651.3,1651.2,7.11633]
[1745217091872,31.92517879,1651.3,1651.2,5.905]
[1745217092177,31.92517879,1651.3,1651.2,3.47533]
[1745217092477,35.48657879,1651.3,1651.2,3.47533]
[1745217092773,35.48657879,1651.3,1651.2,2.264]
[1745217093478,34.27531879,1651.3,1651.2,2.264]
[1745217093776,25.39865153,1651.3,1651.2,2.264]
[1745217094277,24.18739153,1651.3,1651.2,3.47533]
[1745217094980,25.39865153,1651.3,1651.2,3.47533]
[1745217095180,20.62599153,1651.3,1651.2,3.47533]
[1745217095477,20.62599153,1651.3,1651.2,6.89503]
[1745217096975,25.49813901,1651.3,1651.2,6.89503]
[1745217097375,22.09643901,1651.3,1651.2,6.89503]
[1745217097671,8.07994748,1651.3,1651.2,6.89503]
[1745217101488,6.0634771,1651.3,1651.2,6.89503]
[1745217105095,0.0090788,1651.4,1651.3,1.21126]
[1745217105383,0.0090788,1651.4,1651.3,12.73166]
[1745217105590,8.08902628,1651.4,1651.3,12.73166]
[1745217105990,8.08902628,1651.4,1651.3,17.73166]
[1745217106191,10.08792726,1651.5,1651.4,1.21119]
[1745217106402,10.08792726,1651.5,1651.4,11.41329]
[1745217106786,10.08792726,1651.5,1651.4,52.21329]
[1745217107090,10.08792726,1651.5,1651.4,54.47729]
[1745217109987,0.00596823,1651.6,1651.5,1.21111]
[1745217110290,11.50193686,1651.6,1651.5,4.79591]
[1745217110694,11.50193686,1651.6,1651.5,45.59591]
[1745217111090,11.50193686,1651.6,1651.5,47.85991]
[1745217112087,11.50193686,1651.6,1651.5,45.59591]
[1745217113091,11.50193686,1651.6,1651.5,47.85991]
[1745217114197,10.08792726,1652.1,1651.5,57.5328]
[1745217114495,24.89639589,1652.1,1652.0,1.21075]
[1745217114691,24.89639589,1652.1,1652.0,5.72375]
[1745217115201,24.89639589,1652.1,1652.0,46.52375]
[1745217115389,24.89639589,1652.1,1652.0,49.90695]
[1745217116492,24.89639589,1652.1,1652.0,46.52375]
[1745217117292,14.80846863,1652.1,1652.0,46.52375]
[1745217117692,14.80846863,1652.1,1652.0,49.73155]
[1745217122205,11.49596863,1652.1,1652.0,49.73155]
[1745217122409,3.6703,1652.2,1652.1,1.21067]
[1745217122608,18.54916863,1652.2,1652.1,1.21067]
[1745217122999,18.54916863,1652.2,1652.1,42.01067]
[1745217124398,19.75976863,1652.2,1652.1,40.8]
[1745217124800,18.54916863,1652.2,1652.1,42.01067]
[1745217128709,18.54916863,1652.2,1652.1,45.57897]
[1745217129210,18.54916863,1652.2,1652.1,42.01067]
[1745217129905,19.75976863,1652.2,1652.1,40.8]
[1745217130503,18.54916863,1652.2,1652.1,42.01067]
[1745217131414,19.75976863,1652.2,1652.1,42.01067]
[1745217132511,18.54916863,1652.2,1652.1,42.01067]
[1745217135711,19.75976863,1652.2,1652.1,40.8]
[1745217135909,19.75976863,1652.2,1651.9,1.2198588]
[1745217135910,1.21075,1652.0,1651.9,0.0090788]
[1745217136109,15.91451863,1652.0,1651.9,0.0090788]
[1745217136615,19.53211863,1652.0,1651.9,0.0090788]
[1745217136911,19.53211863,1652.0,1651.9,40.8090788]
[1745217140712,24.53211863,1652.0,1651.9,40.8090788]
[1745217141216,1.21119,1651.4,1651.3,3.5872]
[1745217141414,1.21116,1651.5,1651.3,1.21124]
[1745217141814,15.20276863,1651.4,1651.3,1.21124]
[1745217142212,15.20276863,1651.4,1651.3,44.27524]
[1745217144220,11.49596863,1651.4,1651.3,44.27524]
[1745217144623,14.93136863,1651.4,1651.3,44.27524]
[1745217146423,11.49596863,1651.4,1651.3,44.27524]
[1745217147520,14.97616863,1651.4,1651.3,44.27524]
[1745217151724,16.18735863,1651.4,1651.3,44.27524]
[1745217152727,19.39515863,1651.4,1651.3,43.064]
[1745217153120,28.90115863,1651.4,1651.3,40.8]
[1745217154628,29.00780544,1651.4,1651.3,40.8]
[1745217155028,1.21126,1651.3,1651.2,0.0090788]
[1745217155333,1.2116,1650.9,1650.6,7.09575]
[1745217155621,10.4073,1650.8,1650.6,1.21175]
[1745217155822,10.4073,1650.8,1650.5,3.3818]
[1745217155823,14.70376863,1650.8,1650.7,1.2117]
[1745217156029,4.506,1650.9,1650.7,42.0117]
[1745217156229,4.506,1650.9,1650.8,3.4925]
[1745217156427,8.0522,1650.9,1650.8,3.4925]
[1745217156630,19.54816863,1650.9,1650.8,3.4925]
[1745217157220,19.54816863,1650.9,1650.8,5.7565]
[1745217157429,15.04216863,1650.9,1650.8,6.96813]
[1745217157625,15.04216863,1650.9,1650.8,14.22603]
[1745217158429,15.04216863,1650.9,1650.8,13.0144]
[1745217158629,16.25371863,1650.9,1650.8,13.0144]
[1745217159328,15.04216863,1650.9,1650.8,13.0144]
[1745217159528,3.5462,1650.9,1650.8,14.22603]
[1745217159728,3.5462,1650.9,1650.8,13.0144]
[1745217160229,4.75775,1650.9,1650.8,9.4199]
[1745217162727,4.75775,1650.9,1650.8,5.7565]
[1745217162929,8.44075,1650.9,1650.8,2.264]
[1745217163137,1.21163,1650.8,1650.7,40.8]
[1745217163333,8.02743,1650.8,1650.7,40.8]
[1745217164626,13.02743,1650.8,1650.7,40.8]
[1745217164828,24.52339863,1650.8,1650.7,40.8]
[1745217165032,19.52339863,1650.8,1650.7,40.8]
[1745217170137,19.52339863,1650.8,1650.7,43.064]
[1745217173138,19.52339863,1650.8,1650.7,40.8]
[1745217175243,19.52339863,1650.8,1650.7,43.064]
[1745217175937,15.10396863,1650.8,1650.7,43.064]
[1745217176140,15.10396863,1650.8,1650.7,54.336]
[1745217176937,16.31559863,1650.8,1650.7,54.336]
[1745217177237,11.49596863,1650.8,1650.7,55.5477]
[1745217178034,11.49596863,1650.8,1650.7,60.5477]
[1745217179932,11.49596863,1650.8,1650.7,55.5477]
[1745217180133,11.49596863,1650.8,1650.7,54.336]
[1745217181744,15.91539863,1650.8,1650.7,54.336]
[1745217182749,11.49596863,1650.8,1650.7,54.336]
[1745217183040,12.70759863,1650.8,1650.7,54.336]
[1745217183243,11.49596863,1650.8,1650.7,54.336]
[1745217183545,12.70759863,1650.8,1650.7,54.336]
[1745217183850,15.91539863,1650.8,1650.7,50.558]
[1745217184142,14.70376863,1650.8,1650.7,50.558]
[1745217184344,14.70376863,1650.8,1650.7,53.9788]
[1745217184544,15.91539863,1650.8,1650.7,53.9788]
[1745217185044,15.91539863,1650.8,1650.7,50.558]
[1745217185231,15.91539863,1650.8,1650.7,43.064]
[1745217185437,19.67469863,1650.8,1650.7,43.064]
[1745217185642,23.21469863,1650.8,1650.7,43.064]
[1745217186246,23.21469863,1650.8,1650.7,40.8]
[1745217186748,34.30540072,1650.8,1650.7,40.8]
[1745217187951,40.32537866,1650.8,1650.7,40.8]
[1745217188253,40.4320857,1650.8,1650.7,40.8]
[1745217188645,1.2117,1650.7,1650.6,8.8e-06]
[1745217188848,1.21214,1650.1,1650.0,3.7167]
[1745217189049,4.41994,1650.1,1650.0,7.484]
[1745217189251,15.91590863,1650.1,1650.0,9.748]
[1745217189643,15.91590863,1650.1,1650.0,50.548]
[1745217190548,15.91590863,1650.1,1650.0,51.76021]
[1745217190549,11.49596863,1650.1,1650.0,51.76021]
[1745217190745,0.0090788,1650.2,1650.1,1.21214]
[1745217190938,1.21189,1650.5,1650.2,1.21203]
[1745217191145,3.2078,1650.6,1650.2,1.21203]
[1745217191146,11.49596863,1650.6,1650.4,1.21188]
[1745217191341,12.70773863,1650.6,1650.5,3.45]
[1745217191547,4.96637,1650.6,1650.5,3.45]
[1745217191746,19.67013863,1650.6,1650.5,3.45]
[1745217191955,1.21188,1650.5,1650.3,7.4106]
[1745217192249,16.46244863,1650.5,1650.3,10.8606]
[1745217192551,15.91568863,1650.4,1650.3,7.4106]
[1745217192753,19.67028863,1650.4,1650.3,7.4106]
[1745217193148,19.67028863,1650.4,1650.3,9.6746]
[1745217194054,19.67028863,1650.4,1650.3,2.264]
[1745217194254,1.21207,1650.2,1650.1,6.8859]
[1745217194451,16.26470863,1650.3,1650.1,10.3938]
[1745217194651,19.54961881,1650.3,1650.2,3.5079]
[1745217195350,19.54961881,1650.3,1650.2,5.7719]
[1745217195556,19.54961881,1650.3,1650.2,6.98397]
[1745217195743,8.05365018,1650.3,1650.2,6.98397]
[1745217196054,8.05365018,1650.3,1650.2,11.98397]
[1745217197245,8.05365018,1650.3,1650.2,17.86797]
[1745217199354,10.08792726,1650.4,1650.3,1.21199]
[1745217199557,10.08792726,1650.4,1650.3,4.71729]
[1745217200158,10.08792726,1650.4,1650.3,6.98129]
[1745217201758,21.58389589,1650.4,1650.3,6.98129]
[1745217202460,21.58389589,1650.4,1650.3,5.7693]
[1745217202762,21.58389589,1650.4,1650.3,6.98129]
[1745217202952,25.15149589,1650.4,1650.3,6.98129]
[1745217203152,21.58389589,1650.4,1650.3,6.98129]
[1745217204471,11.49596863,1650.4,1650.3,6.98129]
[1745217206062,15.11696863,1650.4,1650.3,6.98129]
[1745217206264,16.32888863,1650.4,1650.3,2.264]
[1745217206666,16.32888863,1650.4,1650.3,3.47599]
[1745217208075,19.15375791,1650.4,1650.3,3.47599]
[1745217210175,20.36567791,1650.4,1650.3,3.47599]
[1745217210672,20.36567791,1650.4,1650.3,2.264]
[1745217211672,16.32888863,1650.4,1650.3,2.264]
[1745217211970,15.11696863,1650.4,1650.3,3.47599]
[1745217212875,16.32888863,1650.4,1650.3,2.264]
[1745217215166,23.14685863,1650.4,1650.0,40.8]
[1745217215377,4.41994,1650.1,1650.0,40.8]
[1745217215873,15.91590863,1650.1,1650.0,40.8]
[1745217216075,15.91590863,1650.1,1650.0,43.064]
[1745217216265,14.70376863,1650.1,1650.0,43.064]
[1745217216465,15.91590863,1650.1,1650.0,43.064]
[1745217218573,21.97754646,1650.1,1650.0,43.064]
[1745217221580,20.76540646,1650.1,1650.0,43.064]
[1745217221781,21.97754646,1650.1,1650.0,43.064]
[1745217222083,25.38524646,1650.1,1650.0,43.064]
[1745217222581,19.32360863,1650.1,1650.0,43.064]
[1745217228983,16.11580863,1650.1,1650.0,43.064]
[1745217229281,25.38355219,1650.1,1650.0,43.064]
[1745217232884,29.41153589,1650.1,1650.0,43.064]
[1745217235483,27.41092307,1650.1,1650.0,43.064]
[1745217235681,24.20312307,1650.1,1650.0,43.064]
[1745217235885,27.41092307,1650.1,1650.0,43.064]
[1745217237279,8.08731444,1650.1,1650.0,49.27621]
[1745217237786,8.08731444,1650.1,1650.0,52.81181]
[1745217240486,8.08731444,1650.1,1650.0,47.81181]
[1745217242488,4.62561,1650.3,1650.1,1.21208]
[1745217242690,4.62561,1650.3,1650.2,3.73]
[1745217243193,4.62561,1650.3,1650.2,5.994]
[1745217243383,16.12157863,1650.3,1650.2,9.5419]
[1745217243890,16.12157863,1650.3,1650.2,10.75397]
[1745217243891,14.90956863,1650.3,1650.2,10.75397]
[1745217247479,20.97386083,1650.3,1650.2,10.75397]
[1745217248890,20.97386083,1650.3,1650.2,5.994]
[1745217248891,22.18585083,1650.3,1650.2,5.994]
[1745217249090,1.21214,1650.1,1650.0,42.01221]
[1745217249496,12.70810863,1650.1,1650.0,42.01221]
[1745217249680,23.50450863,1650.1,1650.0,42.01221]
[1745217250094,23.50450863,1650.1,1650.0,44.27621]
[1745217250293,22.29236863,1650.1,1650.0,44.27621]
[1745217250593,23.50450863,1650.1,1650.0,43.064]
[1745217250796,31.59182307,1650.1,1650.0,43.064]
[1745217251094,30.37968307,1650.1,1650.0,44.27621]
[1745217253593,30.37968307,1650.1,1650.0,43.064]
[1745217253794,30.37968307,1650.1,1650.0,44.27621]
[1745217254387,30.37968307,1650.1,1650.0,43.064]
[1745217255895,31.59182307,1650.1,1650.0,43.064]
[1745217257004,23.50450863,1650.1,1650.0,43.064]
[1745217258499,22.29236863,1650.1,1650.0,43.064]
[1745217258693,22.29236863,1650.1,1650.0,44.27621]
[1745217259096,22.29236863,1650.1,1650.0,43.064]
[1745217259296,23.50450863,1650.1,1650.0,43.064]
[1745217265503,31.59923578,1650.1,1650.0,43.064]
[1745217267904,34.80703578,1650.1,1650.0,2.264]
[1745217268606,36.80023589,1650.1,1650.0,2.264]
[1745217268808,36.80023589,1650.1,1650.0,43.064]
[1745217268997,41.80023589,1650.1,1650.0,43.064]
[1745217269697,36.80023589,1650.1,1650.0,43.064]
[1745217270203,47.78423589,1650.1,1650.0,43.064]
[1745217270506,47.89097736,1650.1,1650.0,41.6805]
[1745217272107,37.8030501,1650.1,1650.0,41.6805]
[1745217272501,37.80307035,1650.1,1650.0,41.6805]
[1745217274103,37.69630863,1650.1,1650.0,41.6805]
[1745217274308,37.80306571,1650.1,1650.0,41.6805]
[1745217275307,37.69630863,1650.1,1650.0,41.6805]
[1745217275510,37.80306572,1650.1,1650.0,41.6805]
[1745217275704,32.80306572,1650.1,1650.0,41.6805]
[1745217275908,32.69630863,1650.1,1650.0,41.6805]
[1745217276209,7.91034,1650.1,1650.0,45.2522]
[1745217276408,19.40630863,1650.1,1650.0,52.358]
[1745217277408,14.70376863,1650.1,1650.0,52.358]
[1745217277910,14.70376863,1650.1,1650.0,53.57021]
[1745217278108,14.70376863,1650.1,1650.0,52.358]
[1745217278307,15.91590863,1650.1,1650.0,52.358]
[1745217278509,14.70376863,1650.1,1650.0,52.358]
[1745217279797,14.70376863,1650.1,1650.0,53.57021]
[1745217281309,20.7632834,1650.1,1650.0,53.57021]
[1745217281809,17.5554834,1650.1,1650.0,53.57021]
[1745217282008,20.7632834,1650.1,1650.0,53.57021]
[1745217283913,6.05951477,1650.1,1650.0,58.57021]
[1745217284506,6.05951477,1650.1,1650.0,53.57021]
[1745217284812,10.09947673,1650.1,1650.0,53.57021]
[1745217286318,21.59544536,1650.1,1650.0,53.57021]
[1745217286612,21.59544536,1650.1,1650.0,52.358]
[1745217287218,25.27984536,1650.1,1650.0,52.358]
[1745217287414,21.59544536,1650.1,1650.0,53.57021]
[1745217287611,10.09947673,1650.1,1650.0,58.57021]
[1745217288110,1.51547673,1650.1,1650.0,58.57021]
[1745217289419,8.07935303,1650.2,1650.1,1.21214]
[1745217289610,8.07935303,1650.2,1650.1,9.48234]
[1745217289808,8.07935303,1650.2,1650.1,17.69014]
[1745217290009,8.07935303,1650.2,1650.1,58.49014]
[1745217290917,8.07935303,1650.2,1650.1,55.28234]
[1745217291119,8.07935303,1650.2,1650.1,61.16634]
[1745217291417,8.07935303,1650.2,1650.1,64.37414]
[1745217292314,8.07935303,1650.2,1650.1,64.83499882]
[1745217293021,16.12535183,1650.7,1650.5,1.21181]
[1745217293222,15.11336863,1650.6,1650.5,1.21181]
[1745217300835,15.11336863,1650.6,1650.4,4.75447]
[1745217301039,18.58466863,1650.5,1650.4,4.75447]
[1745217301739,21.79246863,1650.5,1650.4,1.21187]
[1745217302339,25.23656863,1650.5,1650.4,1.21187]
[1745217303033,18.23456863,1650.5,1650.4,1.21187]
[1745217303235,18.23456863,1650.5,1650.4,4.84937]
[1745217305239,15.02676863,1650.5,1650.4,4.84937]
[1745217305544,18.23456863,1650.5,1650.4,4.84937]
[1745217307638,18.23456863,1650.5,1650.4,1.21187]
[1745217313148,15.02676863,1650.5,1650.4,1.21187]
[1745217313451,15.02676863,1650.5,1650.4,4.68927]
[1745217314147,15.02676863,1650.5,1650.4,6.95327]
[1745217314947,3.2078,1650.5,1650.4,6.95327]
[1745217315148,7.2560788,1650.7,1650.6,1.21177]
[1745217315447,18.75204743,1650.7,1650.6,1.21177]
[1745217315748,7.2560788,1650.7,1650.6,42.01177]
[1745217315944,18.75204743,1650.7,1650.6,42.01177]
[1745217321240,18.75204743,1650.7,1650.6,45.59547]
[1745217321445,15.30794743,1650.7,1650.6,45.59547]
[1745217321940,15.30794743,1650.7,1650.6,49.13417]
[1745217322341,15.30794743,1650.7,1650.6,52.86337]
[1745217323642,11.50504743,1650.7,1650.6,52.86337]
[1745217324341,15.32254743,1650.7,1650.6,52.86337]
[1745217338957,19.74204743,1650.7,1650.6,40.8]
[1745217339158,19.74208743,1650.7,1650.5,1.22614]
[1745217339360,20.04283863,1650.6,1650.5,0.0143]
[1745217339754,20.04283863,1650.6,1650.4,7.09586]
[1745217339958,21.68436863,1650.5,1650.4,7.09586]
[1745217340162,21.68436863,1650.5,1650.4,9.35986]
[1745217340761,21.68436863,1650.5,1650.4,50.15986]
[1745217341262,14.97486863,1650.5,1650.4,50.15986]
[1745217341558,14.97486863,1650.5,1650.4,61.32846]
[1745217343962,14.97486863,1650.5,1650.4,55.44446]
[1745217344164,11.49596863,1650.5,1650.4,55.44446]
[1745217345359,3.5213,1650.6,1650.5,1.21185]
[1745217345561,15.01726863,1650.6,1650.5,4.81655]
[1745217346062,11.49596863,1650.6,1650.5,4.81655]
[1745217346258,11.49596863,1650.6,1650.5,7.08055]
[1745217346460,11.49596863,1650.6,1650.5,10.28835]
[1745217351767,15.03356863,1650.6,1650.5,10.28835]
[1745217353164,15.03356863,1650.6,1650.5,7.08055]
[1745217355865,15.03356863,1650.6,1650.5,3.47585]
[1745217356265,18.78906863,1650.6,1650.5,3.47585]
[1745217356469,24.82205853,1650.6,1650.5,3.47585]
[1745217358165,24.82205853,1650.6,1650.5,1.21185]
[1745217359570,26.86842166,1650.6,1650.5,1.21185]
[1745217360269,26.86842166,1650.6,1650.5,3.47585]
[1745217367561,30.07622166,1650.6,1650.5,3.47585]
[1745217369372,31.28799166,1650.6,1650.5,2.264]
[1745217369876,30.07622166,1650.6,1650.5,3.47585]
[1745217370268,30.07622166,1650.6,1650.5,1.21185]
[1745217370977,35.07622166,1650.6,1650.4,0.0143]
[1745217371276,16.17251863,1650.5,1650.4,0.0143]
[1745217371475,16.17251863,1650.5,1650.4,40.8143]
[1745217371665,24.79491863,1650.5,1650.4,40.8]
[1745217375275,24.79491863,1650.5,1649.9,0.0090788]
[1745217375276,1.21221,1650.0,1649.9,0.0090788]
[1745217375577,4.42001,1650.0,1649.9,0.0090788]
[1745217375775,15.91597863,1650.0,1649.9,0.0090788]
[1745217375973,19.54987863,1650.0,1649.9,0.0090788]
[1745217376168,19.54987863,1650.0,1649.9,43.0730788]
[1745217376372,24.54987863,1650.0,1649.9,43.0730788]
[1745217378973,19.54987863,1650.0,1649.9,43.0730788]
[1745217379378,29.5902461,1650.0,1649.9,43.0730788]
[1745217380385,29.5902461,1650.0,1649.9,2.264]
[1745217380386,34.5902461,1650.0,1649.9,2.264]
[1745217380585,34.5902461,1650.0,1649.9,0.72029]
[1745217381177,34.69633141,1650.0,1649.9,0.72029]
[1745217381377,29.69633141,1650.0,1649.9,41.52029]
[1745217381683,29.69617446,1650.0,1649.9,41.52029]
[1745217381883,29.5902461,1650.0,1649.9,41.52029]
[1745217382379,34.69618481,1650.0,1649.9,41.52029]
[1745217383288,32.6682986,1650.0,1649.9,41.52029]
[1745217383675,32.56235989,1650.0,1649.9,41.52029]
[1745217383881,1.21229,1649.9,1649.8,0.0090788]
[1745217384081,16.50580199,1649.9,1649.8,2.2730788]
[1745217384387,21.50580199,1649.9,1649.8,2.2730788]
[1745217384979,27.48980199,1649.9,1649.8,43.0730788]
[1745217386583,27.48980199,1649.9,1649.8,41.3746388]
[1745217387186,27.48980199,1649.9,1649.8,40.8]
[1745217387889,33.47439156,1649.9,1649.8,40.8]
[1745217388187,33.47439156,1649.9,1649.8,43.064]
[1745217388393,33.47439156,1649.9,1649.8,2.264]
[1745217388581,33.47431452,1649.9,1649.8,1.5288]
[1745217389389,33.47431452,1649.9,1649.8,42.3288]
[1745217389891,1.21236,1649.8,1649.7,0.0090788]
[1745217390092,28.21809495,1649.8,1649.7,2.2730788]
[1745217390284,33.21818009,1649.8,1649.7,2.2730788]
[1745217390489,1.21273,1649.3,1649.2,7.3607]
[1745217390688,8.86453,1649.3,1649.2,7.3607]
[1745217390889,20.36049863,1649.3,1649.2,48.1607]
[1745217391083,20.36049863,1649.3,1649.2,43.064]
[1745217391284,24.10988097,1649.3,1649.2,2.264]
[1745217391495,29.10988097,1649.3,1649.2,2.264]
[1745217391794,29.10984697,1649.3,1649.2,2.264]